bitfinex-derivatives/quotes_BTCF0:USTF0_20241125
["timestamp","ask_amount","ask_price","bid_price","bid_amount"]
[1732553296516,9.07e-05,95923.0,95922.0,0.27093038]
[1732553296806,0.3608,95938.0,95922.0,0.21881838]
[1732553297006,0.052106,95934.0,95922.0,0.21881838]
[1732553298106,0.052106,95933.0,95922.0,0.21881838]
[1732553298408,8.646e-05,95936.0,95923.0,0.19796]
[1732553298708,8.646e-05,95936.0,95925.0,0.05211]
[1732553298908,8.646e-05,95936.0,95928.0,0.052109]
[1732553299117,0.18516207,95975.0,95951.0,0.052096]
[1732553299306,0.3608,95989.0,95962.0,0.05209]
[1732553299307,0.00148,95976.0,95962.0,0.05209]
[1732553299501,0.54596207,95989.0,95968.0,0.3608]
[1732553299502,0.09399308,95980.0,95968.0,0.3608]
[1732553299704,0.05,95988.0,95950.0,0.09399308]
[1732553299705,0.3608,95971.0,95950.0,0.3608]
[1732553300009,0.09399308,95970.0,95959.0,8.244e-05]
[1732553300203,0.052088,95967.0,95959.0,8.244e-05]
[1732553300709,0.23583156,95966.0,95960.0,0.3608]
[1732553301008,0.18516207,95964.0,95960.0,0.3608]
[1732553301210,0.23583156,95963.0,95960.0,0.3608]
[1732553301407,0.05,95965.0,95960.0,0.3608]
[1732553301408,0.05066949,95962.0,95960.0,0.3608]
[1732553301608,0.05066949,95961.0,95960.0,0.3608]
[1732553301911,0.23516207,95965.0,95960.0,0.3608]
[1732553301912,0.18516207,95963.0,95960.0,0.3608]
[1732553302106,0.05066949,95962.0,95960.0,0.3608]
[1732553302503,0.05066949,95961.0,95960.0,0.3608]
[1732553302802,0.00012802,95969.0,95964.0,0.052089]
[1732553302999,0.00012802,95969.0,95968.0,0.412887]
[1732553308708,0.00012802,95969.0,95968.0,0.3608]
[1732553309215,0.00012802,95969.0,95960.0,0.03170506]
[1732553309216,0.052091,95961.0,95960.0,0.03170506]
[1732553309416,0.052092,95960.0,95959.0,8.244e-05]
[1732553309608,0.0478,95960.0,95959.0,0.03051444]
[1732553309804,0.07563857,95960.0,95958.0,0.30223582]
[1732553310007,0.052096,95951.0,95950.0,0.3608]
[1732553310310,0.052096,95951.0,95940.0,0.3608]
[1732553310311,0.052099,95948.0,95940.0,0.3923246]
[1732553310615,0.052099,95947.0,95941.0,8.53e-05]
[1732553310911,0.052096,95952.0,95945.0,0.052099]
[1732553311217,0.052096,95952.0,95941.0,8.53e-05]
[1732553311218,0.3608,95959.0,95941.0,0.02093491]
[1732553311419,0.3608,95959.0,95957.0,0.052093]
[1732553311604,0.02783857,95958.0,95957.0,0.052093]
[1732553311912,0.3608,95959.0,95949.0,0.09399308]
[1732553312117,0.3608,95959.0,95954.0,0.052095]
[1732553312414,0.3608,95959.0,95949.0,0.09399308]
[1732553312415,0.052094,95956.0,95949.0,0.09399308]
[1732553312616,0.052094,95956.0,95948.0,0.052098]
[1732553313114,0.4103,95959.0,95945.0,0.19764]
[1732553313418,0.4103,95959.0,95949.0,0.052097]
[1732553314212,0.4103,95959.0,95945.0,0.19764]
[1732553314411,0.052098,95949.0,95941.0,0.02093491]
[1732553314621,0.4103,95959.0,95941.0,0.02093491]
[1732553314922,0.052095,95955.0,95949.0,0.09399308]
[1732553315221,0.41186001,95959.0,95949.0,0.09399308]
[1732553315512,0.41186001,95959.0,95941.0,0.07303691]
[1732553315513,0.052095,95953.0,95941.0,0.07303691]
[1732553315716,0.05067697,95952.0,95941.0,0.07303691]
[1732553316609,0.052101,95943.0,95941.0,8.53e-05]
[1732553317115,0.05068116,95942.0,95941.0,8.53e-05]
[1732553318711,0.05068425,95942.0,95941.0,8.53e-05]
[1732553321016,0.36336425,95942.0,95941.0,8.53e-05]
[1732553321720,0.05068425,95942.0,95941.0,8.53e-05]
[1732553323016,0.052102,95941.0,95940.0,0.01136441]
[1732553323216,0.052102,95941.0,95923.0,0.052111]
[1732553323217,0.052108,95929.0,95923.0,0.052111]
[1732553323517,0.05068425,95928.0,95921.0,0.39012019]
[1732553323716,0.41148425,95927.0,95921.0,0.02932019]
[1732553324013,0.3608,95927.0,95920.0,8.754e-05]
[1732553324213,0.3608,95927.0,95901.0,0.0458]
[1732553324214,0.052111,95925.0,95917.0,0.052115]
[1732553324416,0.0984,95926.0,95917.0,0.052115]
[1732553324616,0.052112,95924.0,95917.0,0.052115]
[1732553325209,0.052112,95924.0,95920.0,0.00010431]
[1732553325419,0.0984,95926.0,95920.0,0.00010431]
[1732553325813,0.052112,95922.0,95920.0,0.00010431]
[1732553327815,0.052111,95924.0,95920.0,0.00010431]
[1732553328114,0.3608,95927.0,95920.0,0.00010431]
[1732553328809,0.052112,95922.0,95920.0,0.00010431]
[1732553329721,0.052112,95922.0,95920.0,0.02909458]
[1732553329925,0.31276,95921.0,95920.0,0.02909458]
[1732553330225,0.364872,95922.0,95920.0,0.02909458]
[1732553331324,0.31276,95921.0,95920.0,0.00010431]
[1732553331623,0.51044,95921.0,95920.0,0.00010431]
[1732553336023,0.19768,95921.0,95920.0,0.00010431]
[1732553338125,0.24837875,95921.0,95920.0,0.00010431]
[1732553338720,0.24837875,95921.0,95916.0,0.02953254]
[1732553338721,0.052115,95917.0,95916.0,0.02953254]
[1732553338916,0.54651351,95917.0,95902.0,0.052123]
[1732553339121,0.54651351,95917.0,95894.0,0.38960192]
[1732553339122,0.5155587,95906.0,95894.0,0.38960192]
[1732553339415,0.09399308,95904.0,95903.0,0.052123]
[1732553339618,0.5155587,95906.0,95894.0,0.38960192]
[1732553339818,0.5155587,95906.0,95899.0,0.052124]
[1732553339819,0.1547587,95905.0,95899.0,0.052124]
[1732553340018,0.052124,95901.0,95895.0,0.00011689]
[1732553340218,0.1547587,95903.0,95895.0,0.00011689]
[1732553340426,0.2068807,95904.0,95899.0,0.052125]
[1732553340623,0.2068817,95904.0,95895.0,0.00011689]
[1732553340925,0.1547587,95903.0,95895.0,0.00011689]
[1732553341230,0.052124,95902.0,95895.0,0.00011689]
[1732553341426,0.1547587,95904.0,95895.0,0.00011689]
[1732553341622,0.052126,95896.0,95895.0,0.00011689]
[1732553341926,0.17594062,95896.0,95895.0,0.00011689]
[1732553342425,9.881e-05,95900.0,95895.0,0.00011689]
[1732553342626,0.05222381,95900.0,95895.0,0.00011689]
[1732553343019,0.052125,95899.0,95895.0,0.00011689]
[1732553343434,0.052126,95896.0,95895.0,0.00011689]
[1732553344725,0.2068847,95896.0,95895.0,0.00011689]
[1732553345036,0.46363216,95896.0,95895.0,0.00011689]
[1732553346232,0.412926,95896.0,95895.0,0.00011689]
[1732553348232,0.56799371,95896.0,95895.0,0.00011689]
[1732553348426,0.412926,95896.0,95895.0,0.00011689]
[1732553349032,0.725766,95896.0,95895.0,0.00011689]
[1732553349230,0.77648173,95896.0,95895.0,0.00011689]
[1732553349628,0.364967,95895.0,95894.0,8.1e-07]
[1732553349826,0.364967,95895.0,95870.0,0.3634]
[1732553349827,0.052142,95871.0,95870.0,0.08207765]
[1732553350635,0.052142,95871.0,95870.0,0.0300724]
[1732553351036,0.053142,95871.0,95870.0,0.0390724]
[1732553351237,0.17710444,95871.0,95870.0,0.0390724]
[1732553351539,0.053142,95871.0,95870.0,0.0390724]
[1732553352036,0.001,95871.0,95870.0,0.0390724]
[1732553352238,0.001,95871.0,95870.0,0.0912124]
[1732553353747,0.412933,95884.0,95873.0,0.052139]
[1732553353748,0.052134,95883.0,95873.0,0.052139]
[1732553354039,0.3608,95884.0,95873.0,0.14613208]
[1732553354346,0.052135,95880.0,95873.0,0.09399308]
[1732553354643,0.3608,95884.0,95873.0,0.09399308]
[1732553354834,0.052133,95883.0,95874.0,0.052138]
[1732553355044,0.3608,95884.0,95874.0,0.101438]
[1732553355337,0.3608,95884.0,95874.0,0.0493]
[1732553357139,0.3608,95884.0,95873.0,0.09399308]
[1732553357340,0.052136,95878.0,95873.0,0.09399308]
[1732553357541,0.052138,95875.0,95870.0,0.0300724]
[1732553357842,0.052138,95874.0,95870.0,0.0300724]
[1732553358042,0.412938,95874.0,95870.0,0.0300724]
[1732553358342,0.3608,95874.0,95870.0,0.0300724]
[1732553359831,0.3608,95879.0,95870.0,0.0822124]
[1732553360032,0.412936,95879.0,95870.0,0.0300724]
[1732553360233,0.3608,95879.0,95870.0,0.0300724]
[1732553360435,0.052139,95873.0,95870.0,0.0300724]
[1732553360636,0.17609844,95878.0,95870.0,0.0300724]
[1732553360837,0.48476244,95879.0,95870.0,0.0300724]
[1732553361240,0.3608,95879.0,95870.0,0.0300724]
[1732553361436,0.412936,95879.0,95870.0,0.0300724]
[1732553361638,0.052136,95878.0,95870.0,0.0300724]
[1732553361938,0.052139,95874.0,95870.0,0.0300724]
[1732553362140,0.3608,95879.0,95870.0,0.0300724]
[1732553362337,0.052139,95873.0,95870.0,0.0300724]
[1732553362738,0.3608,95871.0,95870.0,0.0300724]
[1732553363042,0.3608,95871.0,95870.0,0.00013475]
[1732553363241,0.48478131,95871.0,95870.0,1.826e-05]
[1732553363442,0.48473759,95871.0,95870.0,1.826e-05]
[1732553363737,0.48472731,95871.0,95870.0,1.826e-05]
[1732553363946,0.41294,95871.0,95870.0,1.826e-05]
[1732553364543,0.46214,95871.0,95870.0,1.826e-05]
[1732553366244,0.41911742,95871.0,95848.0,0.3608]
[1732553366434,0.3608,95856.0,95837.0,0.06896974]
[1732553366748,0.05215,95854.0,95839.0,0.052157]
[1732553367049,0.05215,95854.0,95846.0,0.052153]
[1732553367050,0.00911742,95853.0,95846.0,0.052153]
[1732553367239,0.05215,95853.0,95846.0,0.052154]
[1732553367640,0.05215,95853.0,95842.0,0.00011713]
[1732553367947,0.05215,95853.0,95850.0,0.052151]
[1732553368338,0.0932,95855.0,95851.0,0.05215]
[1732553368543,0.001,95853.0,95846.0,0.009]
[1732553368747,0.05415,95853.0,95846.0,0.013]
[1732553368945,0.052151,95851.0,95846.0,0.013]
[1732553369244,0.052151,95851.0,95846.0,0.065153]
[1732553369442,0.001,95853.0,95851.0,0.004]
[1732553369643,0.05215,95852.0,95851.0,0.004]
[1732553371045,0.053151,95851.0,95846.0,0.004]
[1732553371250,0.052153,95848.0,95846.0,0.03394172]
[1732553371446,0.052153,95848.0,95846.0,0.004]
[1732553371952,0.052154,95845.0,95844.0,0.02881946]
[1732553372145,0.052155,95844.0,95842.0,0.00011713]
[1732553372447,0.00013398,95843.0,95842.0,0.00011713]
[1732553373252,0.00013398,95843.0,95842.0,0.0286268]
[1732553373641,0.00013398,95843.0,95842.0,0.00011713]
[1732553374445,0.12385554,95843.0,95842.0,0.00011713]
[1732553374642,0.00013398,95843.0,95842.0,0.00011713]
[1732553376651,0.05088005,95843.0,95842.0,0.00011713]
[1732553376853,0.05088005,95843.0,95842.0,2.428e-05]
[1732553376854,0.05087968,95843.0,95842.0,2.428e-05]
[1732553377752,0.36388016,95843.0,95842.0,2.428e-05]
[1732553377939,0.31313398,95843.0,95842.0,2.428e-05]
[1732553378144,0.46777792,95843.0,95842.0,2.428e-05]
[1732553378450,0.46773476,95843.0,95842.0,2.428e-05]
[1732553378754,0.31313398,95843.0,95842.0,2.428e-05]
[1732553379551,0.00013398,95843.0,95842.0,2.428e-05]
[1732553381950,0.00013398,95843.0,95842.0,0.04512428]
[1732553384776,0.09282031,95843.0,95842.0,0.04512428]
[1732553384971,0.14497531,95843.0,95842.0,2.428e-05]
[1732553385253,0.05228898,95843.0,95842.0,2.428e-05]
[1732553385480,0.1450789,95843.0,95842.0,2.428e-05]
[1732553385985,0.05228898,95843.0,95842.0,2.428e-05]
[1732553387483,0.17590649,95843.0,95842.0,2.428e-05]
[1732553388284,0.48890649,95843.0,95842.0,2.428e-05]
[1732553388592,0.36528898,95843.0,95842.0,2.428e-05]
[1732553388786,0.4160303,95843.0,95837.0,0.02913526]
[1732553388988,0.4160303,95843.0,95833.0,0.01]
[1732553388989,0.05216,95834.0,95833.0,0.01]
[1732553391277,0.20692337,95834.0,95833.0,0.01]
[1732553391584,0.10290775,95834.0,95833.0,0.01]
[1732553392971,0.10290775,95834.0,95833.0,0.062161]
[1732553393376,0.197,95837.0,95833.0,0.01]
[1732553393583,0.15491035,95836.0,95833.0,0.01]
[1732553393793,0.15491035,95836.0,95835.0,0.05216]
[1732553394081,0.197,95837.0,95836.0,0.052159]
[1732553394606,0.197,95837.0,95834.0,0.1416]
[1732553394607,0.052159,95837.0,95834.0,0.1416]
[1732553394890,0.05216,95835.0,95834.0,0.1416]
[1732553395072,0.05216,95834.0,95833.0,0.04206569]
[1732553395268,0.20669036,95834.0,95833.0,0.04206569]
[1732553395470,0.05166835,95834.0,95833.0,0.04206569]
[1732553396368,0.10241207,95834.0,95833.0,0.04206569]
[1732553396776,0.23738186,95834.0,95833.0,0.04206569]
[1732553397079,0.23738186,95834.0,95833.0,0.01]
[1732553397080,0.28812558,95834.0,95833.0,0.01]
[1732553397582,0.10241207,95834.0,95833.0,0.01]
[1732553400770,0.10241609,95834.0,95833.0,0.01]
[1732553401766,0.23768705,95834.0,95833.0,0.01]
[1732553401957,0.28843479,95834.0,95833.0,0.01]
[1732553402354,0.10241609,95834.0,95833.0,0.01]
[1732553403472,0.10241609,95834.0,95833.0,0.00227387]
[1732553403766,0.05074774,95834.0,95812.0,0.04723305]
[1732553403970,0.3608,95821.0,95819.0,0.052168]
[1732553404167,0.052168,95820.0,95819.0,0.052168]
[1732553404763,0.05217,95817.0,95814.0,0.052171]
[1732553404964,0.052171,95815.0,95814.0,0.052171]
[1732553405466,0.052171,95815.0,95813.0,0.00010151]
[1732553405672,0.20749128,95814.0,95813.0,0.00010151]
[1732553405980,0.10292575,95814.0,95813.0,0.00010151]
[1732553406471,0.3202912,95814.0,95813.0,0.00010151]
[1732553406658,0.6334112,95814.0,95813.0,0.00910151]
[1732553407157,0.10292575,95814.0,95813.0,0.00910151]
[1732553407357,0.41604575,95814.0,95813.0,0.00910151]
[1732553407768,0.41604575,95814.0,95813.0,0.00010151]
[1732553409275,0.052178,95801.0,95800.0,0.11]
[1732553409577,0.66021275,95801.0,95800.0,0.14110371]
[1732553409774,0.052179,95800.0,95770.0,0.0026]
[1732553409967,0.3608,95780.0,95777.0,0.052191]
[1732553410168,0.45382127,95780.0,95778.0,0.05219]
[1732553410370,0.3608,95780.0,95779.0,0.00011479]
[1732553411269,0.45378135,95780.0,95779.0,0.00011479]
[1732553411572,0.3608,95780.0,95779.0,0.00011479]
[1732553412471,0.3618,95780.0,95779.0,0.00011479]
[1732553412880,0.3618,95780.0,95779.0,0.31331479]
[1732553413371,0.3628,95780.0,95779.0,0.31731479]
[1732553413574,0.3628,95780.0,95779.0,0.32631479]
[1732553415274,0.7236,95780.0,95779.0,0.01311479]
[1732553415476,0.72372925,95780.0,95779.0,0.01311479]
[1732553415980,0.8167106,95780.0,95779.0,0.01311479]
[1732553416367,0.72372925,95780.0,95779.0,0.01311479]
[1732553420777,0.77591925,95780.0,95779.0,0.01311479]
[1732553421079,0.72372925,95780.0,95779.0,0.01311479]
[1732553423982,0.57792925,95780.0,95779.0,0.32631479]
[1732553424190,0.21712925,95780.0,95779.0,0.32631479]
[1732553426786,0.21712925,95780.0,95779.0,0.37850479]
[1732553426972,0.21712925,95780.0,95779.0,0.32631479]
[1732553430485,0.414462,95795.0,95780.0,0.3132]
[1732553430486,0.12415406,95791.0,95780.0,0.3132]
[1732553430684,0.36228,95795.0,95788.0,0.3608]
[1732553430685,0.3608,95795.0,95788.0,0.3608]
[1732553430887,0.3608,95803.0,95789.0,0.24436]
[1732553431096,0.3608,95803.0,95796.0,0.052181]
[1732553431278,0.3608,95803.0,95789.0,0.0484]
[1732553431279,0.36228,95814.0,95797.0,0.0913]
[1732553431585,0.3608,95805.0,95797.0,0.0913]
[1732553431780,0.052179,95801.0,95797.0,0.0913]
[1732553431985,0.052179,95799.0,95797.0,0.0913]
[1732553432294,0.052179,95799.0,95789.0,0.4092]
[1732553432295,0.052184,95790.0,95789.0,0.09399308]
[1732553432588,0.412984,95790.0,95786.0,0.19596]
[1732553432791,0.412984,95790.0,95786.0,0.22784006]
[1732553433092,0.3608,95790.0,95786.0,0.22784006]
[1732553433490,0.15503546,95800.0,95792.0,0.052183]
[1732553433687,0.3608,95803.0,95793.0,0.09399308]
[1732553433884,0.05218,95798.0,95790.0,0.18798616]
[1732553434089,0.052183,95792.0,95790.0,0.09399308]
[1732553434287,0.052184,95790.0,95789.0,0.005]
[1732553435399,0.052184,95790.0,95786.0,0.04088006]
[1732553435400,0.052186,95787.0,95786.0,0.04588006]
[1732553436092,0.412986,95787.0,95786.0,0.04588006]
[1732553436700,0.412986,95787.0,95786.0,0.03188006]
[1732553436904,0.3608,95787.0,95784.0,0.02088373]
[1732553437207,0.001,95790.0,95789.0,0.052185]
[1732553437398,0.3608,95797.0,95789.0,0.00326358]
[1732553437597,0.3608,95797.0,95796.0,0.052181]
[1732553437801,0.33912251,95797.0,95796.0,0.31316]
[1732553438904,0.33912251,95797.0,95796.0,0.34449052]
[1732553439801,0.33912251,95797.0,95796.0,0.53198597]
[1732553440110,0.33912251,95797.0,95796.0,0.34449052]
[1732553441401,0.3608,95815.0,95796.0,0.34449052]
[1732553441402,0.3608,95806.0,95796.0,0.34449052]
[1732553441715,0.3608,95815.0,95804.0,0.18740426]
[1732553442010,0.3608,95815.0,95797.0,0.20444451]
[1732553442011,0.3608,95815.0,95806.0,0.18740426]
[1732553442208,0.412971,95815.0,95807.0,0.00848451]
[1732553442407,0.41453101,95815.0,95807.0,0.18740426]
[1732553442604,0.36236001,95815.0,95807.0,0.18740426]
[1732553442811,0.3608,95815.0,95807.0,0.18740426]
[1732553443010,0.40668,95827.0,95805.0,0.0962]
[1732553443011,0.36228,95827.0,95809.0,0.18740426]
[1732553443203,0.36228,95827.0,95812.0,0.18740426]
[1732553443204,0.3608,95827.0,95812.0,0.18740426]
[1732553443403,0.3608,95827.0,95813.0,0.69648426]
[1732553443605,0.3608,95827.0,95826.0,0.05217]
[1732553443805,0.3608,95827.0,95826.0,0.36525]
[1732553444112,0.3608,95827.0,95809.0,0.24871176]
[1732553444113,0.052179,95809.0,95806.0,0.18724063]
[1732553444314,0.41298,95807.0,95805.0,0.07950312]
[1732553444512,0.41298,95807.0,95806.0,0.00856138]
[1732553444810,0.052186,95797.0,95784.0,0.19596]
[1732553445007,0.3608,95788.0,95785.0,0.00848419]
[1732553445201,0.3608,95788.0,95786.0,0.00848419]
[1732553445401,0.15536091,95799.0,95794.0,0.052187]
[1732553445402,0.3608,95798.0,95794.0,0.052187]
[1732553445606,0.36228,95807.0,95796.0,0.052186]
[1732553445811,8.526e-05,95814.0,95797.0,0.09411076]
[1732553445812,0.15536091,95812.0,95797.0,0.09411076]
[1732553446005,0.3608,95809.0,95798.0,0.19922343]
[1732553446202,0.3608,95809.0,95798.0,0.19596]
[1732553446408,0.3608,95809.0,95799.0,0.00848417]
[1732553446613,0.3608,95809.0,95798.0,0.19596]
[1732553446614,0.3608,95809.0,95800.0,0.05544726]
[1732553446809,0.3608,95809.0,95798.0,0.19596]
[1732553446810,0.3608,95809.0,95801.0,0.00326323]
[1732553447004,0.3608,95809.0,95801.0,0.052183]
[1732553447204,0.3608,95809.0,95802.0,0.00326312]
[1732553447404,0.3608,95809.0,95803.0,0.00326312]
[1732553447607,0.3608,95809.0,95799.0,0.0457]
[1732553447811,0.3608,95809.0,95805.0,0.052181]
[1732553448003,0.3608,95809.0,95806.0,0.00326302]
[1732553448207,0.3608,95809.0,95800.0,0.19596]
[1732553448406,0.3608,95809.0,95801.0,0.00848388]
[1732553448614,0.3608,95809.0,95802.0,0.00848388]
[1732553448912,0.3608,95809.0,95803.0,0.00848388]
[1732553449114,0.3608,95809.0,95798.0,0.03156811]
[1732553449115,0.412979,95809.0,95798.0,0.03156811]
[1732553449310,0.3608,95800.0,95797.0,0.00011768]
[1732553449507,0.0441,95799.0,95797.0,0.00011768]
[1732553449815,0.0441,95799.0,95797.0,0.03152289]
[1732553451915,0.096285,95799.0,95797.0,0.03152289]
[1732553452520,0.096285,95799.0,95798.0,0.00144416]
[1732553452711,0.052189,95791.0,95780.0,0.18724063]
[1732553452905,0.3608,95781.0,95780.0,0.28141828]
[1732553453112,0.3608,95781.0,95780.0,0.02088328]
[1732553453320,0.3608,95781.0,95780.0,0.21680328]
[1732553453520,0.3608,95781.0,95780.0,0.40422252]
[1732553453728,0.3608,95781.0,95780.0,0.2168941]
[1732553453912,0.3608,95781.0,95780.0,0.2258941]
[1732553454525,0.3618,95781.0,95780.0,0.2258941]
[1732553455020,0.3618,95781.0,95780.0,0.0299741]
[1732553456012,0.3608,95781.0,95780.0,0.0209741]
[1732553456617,0.3608,95781.0,95780.0,9.082e-05]
[1732553464315,0.769,95781.0,95780.0,9.082e-05]
[1732553467716,0.7216,95781.0,95780.0,9.082e-05]
[1732553469948,0.3608,95796.0,95795.0,0.052187]
[1732553470135,0.3608,95796.0,95795.0,0.247787]
[1732553470429,0.3608,95808.0,95795.0,0.560947]
[1732553470623,0.3608,95808.0,95803.0,0.052182]
[1732553470825,0.3608,95808.0,95798.0,0.09399308]
[1732553471116,0.3608,95799.0,95798.0,0.09399308]
[1732553471322,0.3608,95799.0,95795.0,0.1956]
[1732553472025,0.3608,95799.0,95798.0,0.052185]
[1732553472220,0.3608,95799.0,95795.0,0.19564]
[1732553472620,0.3608,95799.0,95797.0,0.052185]
[1732553472819,0.3608,95799.0,95789.0,0.03152985]
[1732553473016,0.3608,95790.0,95789.0,0.09399308]
[1732553473220,0.3608,95790.0,95785.0,0.18707356]
[1732553473423,0.3608,95790.0,95787.0,0.18707356]
[1732553473717,0.3608,95790.0,95788.0,0.05219]
[1732553474221,0.3608,95790.0,95783.0,0.21917064]
[1732553474424,0.3608,95790.0,95782.0,0.38271356]
[1732553474726,0.3608,95790.0,95783.0,0.23926656]
[1732553474928,0.3608,95790.0,95786.0,0.052191]
[1732553475227,0.3608,95790.0,95788.0,0.05219]
[1732553475621,0.3608,95790.0,95785.0,0.1956]
[1732553476025,0.3608,95790.0,95786.0,0.052191]
[1732553476730,0.3608,95790.0,95787.0,0.052191]
[1732553477320,0.3608,95790.0,95785.0,0.1956]
[1732553477628,0.3608,95790.0,95789.0,0.05219]
[1732553478733,0.3608,95790.0,95789.0,0.23926356]
[1732553478926,0.3608,95797.0,95796.0,0.052186]
[1732553480428,0.3608,95797.0,95796.0,0.23959051]
[1732553480618,0.3608,95797.0,95796.0,0.23957646]
[1732553480933,0.3608,95797.0,95796.0,0.2395737]
[1732553481232,0.3608,95801.0,95797.0,0.052186]
[1732553481532,0.3608,95801.0,95800.0,0.052184]
[1732553481832,0.3608,95801.0,95800.0,0.247784]
[1732553482023,0.15521733,95809.0,95806.0,0.05218]
[1732553482227,0.15678346,95810.0,95806.0,0.05218]
[1732553482619,0.15521733,95810.0,95808.0,0.052179]
[1732553483028,0.1862608,95817.0,95812.0,0.052177]
[1732553483323,0.052177,95812.0,95801.0,0.052183]
[1732553483519,0.3608,95804.0,95803.0,0.1956]
[1732553484427,0.3608,95813.0,95807.0,0.05218]
[1732553485127,0.3608,95813.0,95803.0,0.28959308]
[1732553485432,0.3608,95804.0,95803.0,0.28959308]
[1732553485732,0.3608,95804.0,95803.0,0.1956]
[1732553486331,0.3608,95804.0,95801.0,0.1956]
[1732553486535,0.3608,95804.0,95802.0,0.052183]
[1732553486735,0.3608,95813.0,95806.0,0.052181]
[1732553487031,0.3608,95813.0,95803.0,0.09399308]
[1732553487226,0.3608,95813.0,95811.0,0.052178]
[1732553487432,0.3608,95813.0,95812.0,0.0443]
[1732553487628,0.3608,95813.0,95812.0,0.0864]
[1732553487928,0.3608,95813.0,95812.0,0.08966278]
[1732553488430,0.3608,95813.0,95812.0,0.0864]
[1732553488628,8.526e-05,95814.0,95813.0,0.052177]
[1732553488832,0.3608,95834.0,95824.0,0.09399308]
[1732553489131,0.3608,95834.0,95820.0,0.28107069]
[1732553489321,0.052167,95832.0,95820.0,0.09399308]
[1732553489526,0.3608,95834.0,95820.0,0.09399308]
[1732553489925,0.3608,95834.0,95821.0,0.00326248]
[1732553489926,0.3608,95824.0,95821.0,0.00326248]
[1732553490126,0.3608,95824.0,95814.0,0.052176]
[1732553490127,0.3608,95824.0,95814.0,0.09399308]
[1732553490329,0.052172,95822.0,95815.0,0.00326261]
[1732553490632,0.052172,95822.0,95814.0,0.28915308]
[1732553490837,0.0453,95821.0,95814.0,0.28915308]
[1732553491338,0.0453,95821.0,95814.0,0.09999308]
[1732553491634,0.052173,95820.0,95814.0,0.09999308]
[1732553491838,0.0453,95821.0,95814.0,0.09999308]
[1732553492038,0.0453,95821.0,95815.0,0.19516]
[1732553492827,0.0453,95821.0,95814.0,0.09999308]
[1732553492828,0.0453,95821.0,95816.0,0.19516]
[1732553493035,0.052174,95818.0,95816.0,0.19516]
[1732553493535,0.0473,95821.0,95815.0,0.009]
[1732553493729,0.3608,95816.0,95815.0,0.009]
[1732553493930,0.3608,95816.0,95814.0,0.006]
[1732553494238,0.3608,95816.0,95812.0,0.19516]
[1732553494427,0.0473,95821.0,95812.0,0.19516]
[1732553494645,0.3608,95815.0,95813.0,0.052177]
[1732553494842,0.0463,95821.0,95814.0,0.052176]
[1732553495029,0.0463,95821.0,95815.0,0.006]
[1732553495030,0.001,95816.0,95815.0,0.006]
[1732553495640,0.001,95816.0,95815.0,0.50946032]
[1732553496143,0.001,95816.0,95815.0,0.32238271]
[1732553496438,0.3608,95833.0,95815.0,0.01448273]
[1732553496744,0.3608,95833.0,95832.0,0.052166]
[1732553497128,0.3608,95833.0,95829.0,0.19516]
[1732553497129,0.0009,95838.0,95837.0,0.052164]
[1732553498944,0.0009,95838.0,95837.0,0.08314827]
[1732553500033,0.0001229,95841.0,95840.0,0.052162]
[1732553500543,0.0001229,95841.0,95840.0,0.05542385]
[1732553501340,0.0001229,95841.0,95840.0,0.06064248]
[1732553501538,0.0001229,95841.0,95840.0,0.05542385]
[1732553501845,0.0001229,95841.0,95840.0,0.2557625]
[1732553502031,0.0001229,95841.0,95840.0,0.6165625]
[1732553502729,0.0001229,95841.0,95840.0,0.61656214]
[1732553502938,0.0001229,95841.0,95840.0,0.61134359]
[1732553503237,0.0001229,95841.0,95840.0,0.64297405]
[1732553505240,0.0001229,95841.0,95840.0,0.95601405]
[1732553505439,0.0442,95864.0,95857.0,0.052153]
[1732553505852,0.0442,95864.0,95859.0,0.052151]
[1732553506141,0.0442,95864.0,95860.0,0.052151]
[1732553506345,0.0442,95864.0,95855.0,0.19512]
[1732553506346,0.0442,95864.0,95862.0,0.05215]
[1732553508044,0.0442,95864.0,95863.0,0.3608]
[1732553508248,0.3634,95892.0,95876.0,0.052142]
[1732553508547,0.0895,95891.0,95876.0,0.247262]
[1732553509443,0.0895,95891.0,95876.0,0.25052252]
[1732553510536,0.0895,95891.0,95876.0,0.25573938]
[1732553510733,0.0435,95891.0,95876.0,0.4423473]
[1732553510937,0.0435,95891.0,95890.0,0.052135]
[1732553511144,0.0435,95891.0,95890.0,0.247215]
[1732553512046,0.0451,95901.0,95899.0,0.05213]
[1732553512244,0.02740907,95902.0,95900.0,0.00325967]
[1732553512445,0.00011785,95910.0,95898.0,0.3608]
[1732553512746,0.00011785,95910.0,95904.0,0.052127]
[1732553512932,0.00011785,95910.0,95905.0,0.19504]
[1732553513346,0.00011785,95910.0,95908.0,0.052125]
[1732553513737,0.00011785,95910.0,95909.0,7.428e-05]
[1732553514448,0.00011785,95910.0,95909.0,0.01596557]
[1732553514637,0.00011785,95910.0,95909.0,0.00854894]
[1732553515644,0.00011785,95910.0,95909.0,0.03117309]
[1732553515947,0.0446,95926.0,95909.0,0.03117309]
[1732553516140,0.0446,95926.0,95913.0,0.052122]
[1732553516451,0.0446,95926.0,95924.0,0.052116]
[1732553516947,0.0446,95926.0,95925.0,0.19456]
[1732553517341,0.0446,95926.0,95925.0,0.21072853]
[1732553518039,0.04603198,95926.0,95925.0,0.21072853]
[1732553518452,0.04603198,95926.0,95925.0,0.23668205]
[1732553518745,0.04603198,95926.0,95925.0,0.19456]
[1732553519146,0.04603198,95926.0,95924.0,0.052116]
[1732553519348,0.04603198,95926.0,95925.0,0.19456]
[1732553520751,7.491e-05,95932.0,95931.0,0.052113]
[1732553520949,0.3608,95954.0,95945.0,0.052105]
[1732553520950,0.4509,95954.0,95945.0,0.052105]
[1732553521153,0.4509,95954.0,95926.0,0.052115]
[1732553521154,0.4509,95954.0,95944.0,0.09399308]
[1732553521445,0.4509,95954.0,95952.0,0.052101]
[1732553522538,0.4509,95954.0,95945.0,0.19452]
[1732553522741,0.052105,95946.0,95932.0,0.052112]
[1732553522948,0.052114,95929.0,95925.0,0.02085814]
[1732553523149,0.412916,95926.0,95912.0,0.19452]
[1732553523338,0.3608,95917.0,95913.0,0.19452]